Workbook

Sheet Model
B2: Simple Project Finance Example (Solar) for Debt Service Reserve Account (DSRA)
B3: ($ in Millions USD Except for Per-Unit Figures)
B6: Assumptions: | D6: Units:
C8: Project Capacity: | D8: MW | E8: 1600
C9: Net Capacity Factor: | D9: % | E9: 0.25
C10: Annual Degradation Factor: | D10: % | E10: 0.005
C12: Initial PPA Rate: | D12: $ / MWh | E12: 65
C13: Escalation Factor: | D13: % | E13: 0.03
C14: Hours in Year: | D14: # Hours | E14: =24*365 -> 8760
C16: Operating & Maintenance Expense: | D16: $ / MW / Yr | E16: 20000
C17: Escalation Factor: | D17: % | E17: 0.025
C19: Useful Life of Maintenance CapEx: | D19: # Years | E19: 15
C20: Working Capital % Revenue: | D20: # | E20: 0.05
C22: Units: | D22: # | E22: 1000000
C24: Use Debt Service Reserve Account (DSRA): | D24: # | E24: 1
C25: Loan Life Coverage Ratio (LLCR) Target: | D25: x | E25: 1.5
C26: Fixed Interest Rate on Debt: | D26: % | E26: 0.1
C27: Tax Rate: | D27: % | E27: 0.25
C29: Present Value of CFADS Over Debt Tenor: | D29: $ M | E29: =NPV(Interest_Rate,OFFSET(G64,0,0,1,Tenor)) -> 1184.439355
C30: Initial Debt Balance: | D30: $ M | E30: =E29/Min_LLCR -> 789.626237
C31: Debt Tenor: | D31: # Years | E31: 10
C33: Asset Useful Life: | D33: # Years | E33: 20
C34: EBITDA Purchase Multiple: | D34: x | E34: 8
C36: Purchase Enterprise Value: | D36: $ M | E36: =G58*E34 -> 1604.958688
C37: (-) Debt Used: | D37: $ M | E37: =-E30 -> -789.626237
C38: Investor Equity: | D38: $ M | E38: =SUM(E36:E37) -> 815.332451
F40: 0 | G40: =F40+1 -> 1 | H40: =G40+1 -> 2 | I40: =H40+1 -> 3 | J40: 4 | K40: 5 | L40: 6 | M40: 7 | N40: 8 | O40: 9 | P40: =O40+1 -> 10 | Q40: =P40+1 -> 11 | R40: =Q40+1 -> 12 | S40: =R40+1 -> 13 | T40: =S40+1 -> 14 | U40: =T40+1 -> 15 | V40: =U40+1 -> 16 | W40: =V40+1 -> 17 | X40: =W40+1 -> 18 | Y40: =X40+1 -> 19 | Z40: 20
G41: Projected Years:
B42: Cash Flow Projections: | D42: =$D$6 -> Units: | E42: Total: | F42: ="Year "&F40 -> Year 0 | G42: ="Year "&G40 -> Year 1 | H42: Year 2 | I42: Year 3 | J42: Year 4 | K42: Year 5 | L42: Year 6 | M42: Year 7 | N42: Year 8 | O42: Year 9 | P42: Year 10 | Q42: Year 11 | R42: Year 12 | S42: Year 13 | T42: Year 14 | U42: Year 15 | V42: Year 16 | W42: Year 17 | X42: Year 18 | Y42: Year 19 | Z42: Year 20
C44: Capacity Post-Availability and Degradation: | D44: MW | F44: =Capacity*Capacity_Factor*(1-F40*Degradation) -> 400 | G44: 398 | H44: 396 | I44: 394 | J44: 392 | K44: 390 | L44: 388 | M44: 386 | N44: 384 | O44: 382 | P44: 380 | Q44: 378 | R44: 376 | S44: 374 | T44: 372 | U44: 370 | V44: 368 | W44: 366 | X44: 364 | Y44: 362 | Z44: 360
C45: Electricity Generation: | D45: MWh | G45: =G44*Hrs_in_Year -> 3486480 | H45: 3468960 | I45: 3451440 | J45: 3433920 | K45: 3416400 | L45: 3398880 | M45: 3381360 | N45: 3363840 | O45: 3346320 | P45: 3328800 | Q45: 3311280 | R45: 3293760 | S45: 3276240 | T45: 3258720 | U45: 3241200 | V45: 3223680 | W45: 3206160 | X45: 3188640 | Y45: 3171120 | Z45: 3153600
C47: PPA Rate: | D47: $ / MWh | F47: =Initial_PPA*(1+PPA_Escalation)^F40 -> 65 | G47: 66.95 | H47: 68.9585 | I47: 71.027255 | J47: 73.15807265 | K47: 75.35281483 | L47: 77.61339927 | M47: 79.94180125 | N47: 82.34005529 | O47: 84.81025695 | P47: 87.35456466 | Q47: 89.9752016 | R47: 92.67445765 | S47: 95.45469137 | T47: 98.31833212 | U47: 101.2678821 | V47: 104.3059185 | W47: 107.4350961 | X47: 110.658149 | Y47: 113.9778935 | Z47: 117.3972303
C48: O&M Expense: | D48: $ / MW | F48: =OM_Expense*(1+OM_Escalation)^F40 -> 20000 | G48: 20500 | H48: 21012.5 | I48: 21537.8125 | J48: 22076.25781 | K48: 22628.16426 | L48: 23193.86836 | M48: 23773.71507 | N48: 24368.05795 | O48: 24977.2594 | P48: 25601.69088 | Q48: 26241.73316 | R48: 26897.77648 | S48: 27570.2209 | T48: 28259.47642 | U48: 28965.96333 | V48: 29690.11241 | W48: 30432.36522 | X48: 31193.17435 | Y48: 31973.00371 | Z48: 32772.32881
C50: Revenue: | D50: $ M | E50: =SUM(G50:Z50) -> 5941.860148 | G50: =G47*G45/Units -> 233.419836 | H50: 239.2142782 | I50: 245.146309 | J50: 251.2189688 | K50: 257.4353566 | L50: 263.7986305 | M50: 270.3120091 | N50: 276.9787716 | O50: 283.802259 | P50: 290.7858748 | Q50: 297.9330855 | R50: 305.2474216 | S50: 312.7324781 | T50: 320.3919152 | U50: 328.2294594 | V50: 336.2489035 | W50: 344.4541077 | X50: 352.8490002 | Y50: 361.4375775 | Z50: 370.2239053
C51: (-) Cash Operating Expenses: | D51: $ M | E51: =SUM(G51:Z51) -> -837.8647697 | G51: =-G48*Capacity/Units -> -32.8 | H51: -33.62 | I51: -34.4605 | J51: -35.3220125 | K51: -36.20506281 | L51: -37.11018938 | M51: -38.03794412 | N51: -38.98889272 | O51: -39.96361504 | P51: -40.96270541 | Q51: -41.98677305 | R51: -43.03644238 | S51: -44.11235344 | T51: -45.21516227 | U51: -46.34554133 | V51: -47.50417986 | W51: -48.69178436 | X51: -49.90907897 | Y51: -51.15680594 | Z51: -52.43572609
C52: EBITDA: | D52: $ M | E52: =SUM(E50:E51) -> 5103.995378 | G52: =SUM(G50:G51) -> 200.619836 | H52: =SUM(H50:H51) -> 205.5942782 | I52: 210.685809 | J52: 215.8969563 | K52: 221.2302938 | L52: 226.6884411 | M52: 232.274065 | N52: 237.9898789 | O52: 243.838644 | P52: =SUM(P50:P51) -> 249.8231694 | Q52: =SUM(Q50:Q51) -> 255.9463125 | R52: 262.2109792 | S52: 268.6201246 | T52: 275.176753 | U52: 281.8839181 | V52: 288.7447236 | W52: 295.7623233 | X52: 302.9399212 | Y52: 310.2807715 | Z52: 317.7881792
C53: (-) Depreciation of Initial Purchase: | D53: $ M | E53: =SUM(G53:Z53) -> -1604.958688 | G53: =-$E$36/$E$33 -> -80.2479344 | H53: =-$E$36/$E$33 -> -80.2479344 | I53: -80.2479344 | J53: -80.2479344 | K53: -80.2479344 | L53: -80.2479344 | M53: -80.2479344 | N53: -80.2479344 | O53: -80.2479344 | P53: -80.2479344 | Q53: -80.2479344 | R53: -80.2479344 | S53: -80.2479344 | T53: -80.2479344 | U53: -80.2479344 | V53: -80.2479344 | W53: -80.2479344 | X53: -80.2479344 | Y53: -80.2479344 | Z53: -80.2479344
C54: (-) Depreciation of Maint. CapEx: | D54: $ M | E54: =SUM(G54:Z54) -> -114.9823169 | G54: =SUM($F59:F59)/$E$19 -> 0 | H54: =SUM($F59:G59)/$E$19 -> 0 | I54: =SUM($F59:H59)/$E$19 -> 0 | J54: =SUM($F59:I59)/$E$19 -> 0 | K54: =SUM($F59:J59)/$E$19 -> 0 | L54: =SUM($F59:K59)/$E$19 -> -6 | M54: =SUM($F59:L59)/$E$19 -> -6 | N54: =SUM($F59:M59)/$E$19 -> -6 | O54: =SUM($F59:N59)/$E$19 -> -6 | P54: =SUM($F59:O59)/$E$19 -> -6 | Q54: =SUM($F59:P59)/$E$19 -> -8.498231694 | R54: =SUM($F59:Q59)/$E$19 -> -8.498231694 | S54: =SUM($F59:R59)/$E$19 -> -8.498231694 | T54: =SUM($F59:S59)/$E$19 -> -8.498231694 | U54: =SUM($F59:T59)/$E$19 -> -8.498231694 | V54: =SUM($F59:U59)/$E$19 -> -8.498231694 | W54: =SUM($F59:V59)/$E$19 -> -8.498231694 | X54: =SUM($F59:W59)/$E$19 -> -8.498231694 | Y54: =SUM($F59:X59)/$E$19 -> -8.498231694 | Z54: =SUM($F59:Y59)/$E$19 -> -8.498231694
C55: (-) Interest Expense: | D55: $ M | E55: =SUM(G55:Z55) -> -501.7739728 | G55: =-G74 -> -78.9626237 | H55: =-H74 -> -74.95564418 | I55: -69.60686671 | J55: -63.55771556 | K55: -56.74372209 | L55: -50.56976411 | M55: -42.10845058 | N55: -32.66330578 | O55: -22.14583815 | P55: -10.46004192 | Q55: 0 | R55: 0 | S55: 0 | T55: 0 | U55: 0 | V55: 0 | W55: 0 | X55: 0 | Y55: 0 | Z55: 0
C56: Pre-Tax Income: | D56: $ M | E56: =SUM(E52:E55) -> 2882.2804 | G56: =SUM(G52:G55) -> 41.4092779 | H56: =SUM(H52:H55) -> 50.39069958 | I56: 60.83100789 | J56: 72.09130638 | K56: 84.23863729 | L56: 89.87074264 | M56: 103.91768 | N56: 119.0786387 | O56: 135.4448714 | P56: =SUM(P52:P55) -> 153.1151931 | Q56: 167.2001464 | R56: 173.4648131 | S56: 179.8739585 | T56: 186.4305869 | U56: 193.137752 | V56: 199.9985575 | W56: 207.0161573 | X56: 214.1937551 | Y56: 221.5346054 | Z56: 229.0420131
C58: EBITDA: | D58: $ M | E58: =E52 -> 5103.995378 | G58: =G52 -> 200.619836 | H58: 205.5942782 | I58: 210.685809 | J58: 215.8969563 | K58: 221.2302938 | L58: 226.6884411 | M58: 232.274065 | N58: 237.9898789 | O58: 243.838644 | P58: =P52 -> 249.8231694 | Q58: 255.9463125 | R58: 262.2109792 | S58: 268.6201246 | T58: 275.176753 | U58: 281.8839181 | V58: 288.7447236 | W58: 295.7623233 | X58: 302.9399212 | Y58: 310.2807715 | Z58: 317.7881792
C59: (-) Maintenance CapEx & Other: | D59: $ M | E59: =SUM(G59:Z59) -> -175.1417023 | G59: 0 | H59: 0 | I59: 0 | J59: 0 | K59: -90 | L59: 0 | M59: 0 | N59: 0 | O59: 0 | P59: -37.47347541 | Q59: 0 | R59: 0 | S59: 0 | T59: 0 | U59: 0 | V59: 0 | W59: 0 | X59: 0 | Y59: 0 | Z59: -47.66822689
C60: (+/-) Change in Working Capital: | D60: $ M | E60: =SUM(G60:Z60) -> -18.51119527 | G60: =(F50-G50)*WC_Pct_Rev -> -11.6709918 | H60: -0.289722108 | I60: -0.2966015419 | J60: -0.3036329919 | K60: -0.3108193875 | L60: -0.3181636971 | M60: -0.3256689279 | N60: -0.3333381252 | O60: -0.3411743723 | P60: -0.3491807899 | Q60: -0.3573605356 | R60: -0.3657168034 | S60: -0.3742528228 | T60: -0.3829718582 | U60: -0.3918772081 | V60: -0.4009722044 | W60: -0.410260211 | X60: -0.419744623 | Y60: -0.4294288656 | Z60: -0.4393163925
C61: (-) Cash Taxes: | D61: $ M | E61: =SUM(G61:Z61) -> -720.5701001 | G61: =-G56*Tax_Rate -> -10.35231948 | H61: -12.59767489 | I61: -15.20775197 | J61: -18.02282659 | K61: -21.05965932 | L61: -22.46768566 | M61: -25.97942 | N61: -29.76965967 | O61: -33.86121786 | P61: -38.27879827 | Q61: -41.8000366 | R61: -43.36620329 | S61: -44.96848963 | T61: -46.60764672 | U61: -48.28443799 | V61: -49.99963938 | W61: -51.75403931 | X61: -53.54843878 | Y61: -55.38365136 | Z61: -57.26050329
C62: Cash Flow Available for Debt Service (CFADS): | D62: $ M | E62: =SUM(E58:E61) -> 4189.77238 | G62: 178.5965247 | H62: 192.7068812 | I62: 195.1814555 | J62: 197.5704967 | K62: 109.8598151 | L62: 203.9025918 | M62: 205.968976 | N62: 207.8868811 | O62: 209.6362518 | P62: =SUM(P58:P61) -> 173.7217149 | Q62: 213.7889154 | R62: 218.4790591 | S62: 223.2773822 | T62: 228.1861344 | U62: 233.2076029 | V62: 238.344112 | W62: 243.5980238 | X62: 248.9717378 | Y62: 254.4676913 | Z62: 212.4201327
C64: Pasted CFADS from Macro: | D64: $ M | E64: =SUM(G64:Z64) -> 4240.528278 | G64: =Macros!G9 -> 178.5486282 | H64: =Macros!H9 -> 192.6651284 | I64: =Macros!I9 -> 195.1475674 | J64: =Macros!J9 -> 197.5464754 | K64: =Macros!K9 -> 177.7249528 | L64: =Macros!L9 -> 202.7743491 | M64: =Macros!M9 -> 204.8398478 | N64: =Macros!N9 -> 206.7569733 | O64: =Macros!O9 -> 208.5057005 | P64: =Macros!P9 -> 172.5906917 | Q64: =Macros!Q9 -> 212.6576325 | R64: =Macros!R9 -> 217.3477763 | S64: =Macros!S9 -> 222.1460993 | T64: =Macros!T9 -> 227.0548515 | U64: =Macros!U9 -> 232.07632 | V64: =Macros!V9 -> 237.2128292 | W64: =Macros!W9 -> 242.466741 | X64: =Macros!X9 -> 247.840455 | Y64: =Macros!Y9 -> 253.3364085 | Z64: =Macros!Z9 -> 211.2888498
C65: Present Value of CFADS Until Maturity: | D65: $ M | F65: =IF(F40<Tenor,NPV(Interest_Rate,OFFSET(G64,0,0,1,Tenor-F40)),"N/A") -> 1184.439355 | G65: 1124.334663 | H65: 1044.103001 | I65: 953.3657334 | J65: 851.1558313 | K65: 758.5464616 | L65: 631.6267587 | M65: 489.9495868 | N65: 332.1875722 | O65: 156.9006289 | P65: N/A | Q65: N/A | R65: N/A | S65: N/A | T65: N/A | U65: N/A | V65: N/A | W65: N/A | X65: N/A | Y65: N/A | Z65: N/A
C67: Maximum Debt Service Allowed: | D67: $ M | E67: =SUM(G67:Z67) -> 2827.018852 | G67: =G64/Min_LLCR -> 119.0324188 | H67: 128.4434189 | I67: 130.0983783 | J67: 131.6976503 | K67: 118.4833019 | L67: 135.1828994 | M67: 136.5598985 | N67: 137.8379822 | O67: 139.0038004 | P67: =P64/Min_LLCR -> 115.0604612 | Q67: 141.771755 | R67: 144.8985175 | S67: 148.0973996 | T67: 151.369901 | U67: 154.7175467 | V67: 158.1418861 | W67: 161.644494 | X67: 165.22697 | Y67: 168.890939 | Z67: 140.8592332
C68: Maximum Debt Amortization Allowed: | D68: $ M | E68: =SUM(G68:Z68) -> 2325.244879 | G68: =MAX(0,G67-G74) -> 40.06979513 | H68: =MAX(0,H67-H74) -> 53.48777472 | I68: 60.49151154 | J68: 68.13993472 | K68: 61.73957978 | L68: 84.61313526 | M68: 94.45144797 | N68: 105.1746764 | O68: 116.8579622 | P68: =MAX(0,P67-P74) -> 104.6004192 | Q68: 141.771755 | R68: 144.8985175 | S68: 148.0973996 | T68: 151.369901 | U68: 154.7175467 | V68: 158.1418861 | W68: 161.644494 | X68: 165.22697 | Y68: 168.890939 | Z68: 140.8592332
C70: Beginning Debt Balance: | D70: $ M | E70: =E30 -> 789.626237 | G70: =F72 -> 789.626237 | H70: =G72 -> 749.5564418 | I70: 696.0686671 | J70: 635.5771556 | K70: 567.4372209 | L70: 505.6976411 | M70: 421.0845058 | N70: 326.6330578 | O70: 221.4583815 | P70: =O72 -> 104.6004192 | Q70: =P72 -> 0 | R70: =Q72 -> 0 | S70: =R72 -> 0 | T70: =S72 -> 0 | U70: =T72 -> 0 | V70: =U72 -> 0 | W70: =V72 -> 0 | X70: =W72 -> 0 | Y70: =X72 -> 0 | Z70: =Y72 -> 0
C71: (-) Debt Amortization (Sculpted): | D71: $ M | E71: =SUM(G71:Z71) -> -789.626237 | G71: =-MIN(G68,G70) -> -40.06979513 | H71: =-MIN(H68,H70) -> -53.48777472 | I71: -60.49151154 | J71: -68.13993472 | K71: -61.73957978 | L71: -84.61313526 | M71: -94.45144797 | N71: -105.1746764 | O71: -116.8579622 | P71: =-MIN(P68,P70) -> -104.6004192 | Q71: 0 | R71: 0 | S71: 0 | T71: 0 | U71: 0 | V71: 0 | W71: 0 | X71: 0 | Y71: 0 | Z71: 0
C72: Ending Debt Balance: | D72: $ M | E72: =SUM(E70:E71) -> 0 | F72: =E30 -> 789.626237 | G72: =SUM(G70:G71) -> 749.5564418 | H72: =SUM(H70:H71) -> 696.0686671 | I72: 635.5771556 | J72: 567.4372209 | K72: 505.6976411 | L72: 421.0845058 | M72: 326.6330578 | N72: 221.4583815 | O72: 104.6004192 | P72: =SUM(P70:P71) -> 0 | Q72: 0 | R72: 0 | S72: 0 | T72: 0 | U72: 0 | V72: 0 | W72: 0 | X72: 0 | Y72: 0 | Z72: 0
C74: (+) Debt Interest Expense: | D74: $ M | E74: =SUM(G74:Z74) -> 501.7739728 | G74: =G70*Interest_Rate -> 78.9626237 | H74: 74.95564418 | I74: 69.60686671 | J74: 63.55771556 | K74: 56.74372209 | L74: 50.56976411 | M74: 42.10845058 | N74: 32.66330578 | O74: 22.14583815 | P74: =P70*Interest_Rate -> 10.46004192 | Q74: 0 | R74: 0 | S74: 0 | T74: 0 | U74: 0 | V74: 0 | W74: 0 | X74: 0 | Y74: 0 | Z74: 0
C75: (+) Debt Amortization (Sculpted): | D75: $ M | E75: =SUM(G75:Z75) -> 789.626237 | G75: =-G71 -> 40.06979513 | H75: =-H71 -> 53.48777472 | I75: 60.49151154 | J75: 68.13993472 | K75: 61.73957978 | L75: 84.61313526 | M75: 94.45144797 | N75: 105.1746764 | O75: 116.8579622 | P75: =-P71 -> 104.6004192 | Q75: 0 | R75: 0 | S75: 0 | T75: 0 | U75: 0 | V75: 0 | W75: 0 | X75: 0 | Y75: 0 | Z75: 0
C76: Total Debt Service: | D76: $ M | E76: =SUM(E74:E75) -> 1291.40021 | G76: =SUM(G74:G75) -> 119.0324188 | H76: =SUM(H74:H75) -> 128.4434189 | I76: 130.0983783 | J76: 131.6976503 | K76: 118.4833019 | L76: 135.1828994 | M76: 136.5598985 | N76: 137.8379822 | O76: 139.0038004 | P76: =SUM(P74:P75) -> 115.0604612 | Q76: 0 | R76: 0 | S76: 0 | T76: 0 | U76: 0 | V76: 0 | W76: 0 | X76: 0 | Y76: 0 | Z76: 0
C78: Cash Flow Post-Debt Service: | D78: $ M | G78: =G62-G76 -> 59.56410589 | H78: 64.26346225 | I78: 65.08307723 | J78: 65.87284647 | K78: -8.6234868 | L78: 68.71969242 | M78: 69.40907749 | N78: 70.0488989 | O78: 70.6324514 | P78: 58.66125378 | Q78: 213.7889154 | R78: 218.4790591 | S78: 223.2773822 | T78: 228.1861344 | U78: 233.2076029 | V78: 238.344112 | W78: 243.5980238 | X78: 248.9717378 | Y78: 254.4676913 | Z78: 212.4201327
C79: (-) DSRA Funding: | D79: $ M | G79: =-G86 -> -59.56410589 | H79: =-H86 -> -60.53427236 | I79: -1.599272028 | J79: 0 | K79: 0 | L79: -26.70008349 | M79: -1.278083626 | N79: -1.165818187 | O79: 0 | P79: 0 | Q79: 0 | R79: 0 | S79: 0 | T79: 0 | U79: 0 | V79: 0 | W79: 0 | X79: 0 | Y79: 0 | Z79: 0
C80: Cash Flow Post-DSRA Funding: | D80: $ M | G80: =SUM(G78:G79) -> 0 | H80: =SUM(H78:H79) -> 3.729189894 | I80: 63.4838052 | J80: 65.87284647 | K80: -8.6234868 | L80: 42.01960893 | M80: 68.13099387 | N80: 68.88308071 | O80: 70.6324514 | P80: 58.66125378 | Q80: 213.7889154 | R80: 218.4790591 | S80: 223.2773822 | T80: 228.1861344 | U80: 233.2076029 | V80: 238.344112 | W80: 243.5980238 | X80: 248.9717378 | Y80: 254.4676913 | Z80: 212.4201327
C81: (+) DSRA Withdrawals: | D81: $ M | G81: =-G87 -> 0 | H81: =-H87 -> 0 | I81: 0 | J81: 0 | K81: 8.6234868 | L81: 0 | M81: 0 | N81: 0 | O81: 0 | P81: 0 | Q81: 0 | R81: 0 | S81: 0 | T81: 0 | U81: 0 | V81: 0 | W81: 0 | X81: 0 | Y81: 0 | Z81: 0
C82: (+) Excess DSRA Release to Cash Flow: | D82: $ M | G82: =-G88 -> 0 | H82: =-H88 -> 0 | I82: 0 | J82: 13.21434842 | K82: 0 | L82: 0 | M82: 0 | N82: 0 | O82: 23.9433392 | P82: 115.0604612 | Q82: 0 | R82: 0 | S82: 0 | T82: 0 | U82: 0 | V82: 0 | W82: 0 | X82: 0 | Y82: 0 | Z82: 0
C83: Cash Flow Post-Debt Service and Reserves: | D83: $ M | G83: =SUM(G80:G82) -> 0 | H83: =SUM(H80:H82) -> 3.729189894 | I83: 63.4838052 | J83: 79.08719489 | K83: 0 | L83: 42.01960893 | M83: 68.13099387 | N83: 68.88308071 | O83: 94.5757906 | P83: 173.7217149 | Q83: 213.7889154 | R83: 218.4790591 | S83: 223.2773822 | T83: 228.1861344 | U83: 233.2076029 | V83: 238.344112 | W83: 243.5980238 | X83: 248.9717378 | Y83: 254.4676913 | Z83: 212.4201327
C85: Beginning Debt Service Reserve Account (DSRA): | D85: $ M | G85: 10 | H85: =G89 -> 69.56410589 | I85: 130.0983783 | J85: 131.6976503 | K85: 118.4833019 | L85: 109.8598151 | M85: 136.5598985 | N85: 137.8379822 | O85: 139.0038004 | P85: 115.0604612 | Q85: 0 | R85: 0 | S85: 0 | T85: 0 | U85: 0 | V85: 0 | W85: 0 | X85: 0 | Y85: 0 | Z85: 0
C86: (+) DSRA Funding: | D86: $ M | G86: =MAX(0,MIN(H76-G85,G78))*Use_DSRA -> 59.56410589 | H86: 60.53427236 | I86: 1.599272028 | J86: 0 | K86: 0 | L86: 26.70008349 | M86: 1.278083626 | N86: 1.165818187 | O86: 0 | P86: 0 | Q86: 0 | R86: 0 | S86: 0 | T86: 0 | U86: 0 | V86: 0 | W86: 0 | X86: 0 | Y86: 0 | Z86: 0
C87: (-) Withdrawals for Cash Flow Deficits: | D87: $ M | G87: =-MIN(MAX(-G78,0),G85)*Use_DSRA -> 0 | H87: 0 | I87: 0 | J87: 0 | K87: -8.6234868 | L87: 0 | M87: 0 | N87: 0 | O87: 0 | P87: 0 | Q87: 0 | R87: 0 | S87: 0 | T87: 0 | U87: 0 | V87: 0 | W87: 0 | X87: 0 | Y87: 0 | Z87: 0
C88: (-) Excess DSRA Release to Cash Flow: | D88: $ M | G88: =MIN(H76-G85,0)*Use_DSRA -> 0 | H88: 0 | I88: 0 | J88: -13.21434842 | K88: 0 | L88: 0 | M88: 0 | N88: 0 | O88: -23.9433392 | P88: -115.0604612 | Q88: 0 | R88: 0 | S88: 0 | T88: 0 | U88: 0 | V88: 0 | W88: 0 | X88: 0 | Y88: 0 | Z88: 0
C89: Ending Debt Service Reserve Account (DSRA): | D89: $ M | F89: 0 | G89: =SUM(G85:G88) -> 69.56410589 | H89: =SUM(H85:H88) -> 130.0983783 | I89: 131.6976503 | J89: 118.4833019 | K89: 109.8598151 | L89: 136.5598985 | M89: 137.8379822 | N89: 139.0038004 | O89: 115.0604612 | P89: 0 | Q89: 0 | R89: 0 | S89: 0 | T89: 0 | U89: 0 | V89: 0 | W89: 0 | X89: 0 | Y89: 0 | Z89: 0
C91: Debt Service Coverage Ratio (DSCR): | D91: x | E91: =IFERROR(E62/E76,"N/A") -> 3.244364023 | G91: =IFERROR(G62/G76,"N/A") -> 1.500402382 | H91: 1.500325068 | I91: 1.500260481 | J91: 1.500182398 | K91: 0.9272177036 | L91: 1.508346046 | M91: 1.508268373 | N91: 1.508197362 | O91: 1.50813324 | P91: 1.509829816 | Q91: N/A | R91: N/A | S91: N/A | T91: N/A | U91: N/A | V91: N/A | W91: N/A | X91: N/A | Y91: N/A | Z91: N/A
C92: Modified Debt Service Coverage Ratio (DSCR): | D92: x | E92: =IFERROR((E62+E81)/E76,"N/A") -> 3.244364023 | G92: =IFERROR((G62+G81)/G76,"N/A") -> 1.500402382 | H92: =IFERROR((H62+H81)/H76,"N/A") -> 1.500325068 | I92: 1.500260481 | J92: 1.500182398 | K92: 1 | L92: 1.508346046 | M92: 1.508268373 | N92: 1.508197362 | O92: 1.50813324 | P92: 1.509829816 | Q92: N/A | R92: N/A | S92: N/A | T92: N/A | U92: N/A | V92: N/A | W92: N/A | X92: N/A | Y92: N/A | Z92: N/A
C93: Loan Life Coverage Ratio (LLCR): | D93: x | F93: =IFERROR(F65/F72,"N/A") -> 1.5 | G93: 1.5 | H93: 1.5 | I93: 1.5 | J93: 1.5 | K93: 1.5 | L93: 1.5 | M93: 1.5 | N93: 1.5 | O93: 1.5 | P93: N/A | Q93: N/A | R93: N/A | S93: N/A | T93: N/A | U93: N/A | V93: N/A | W93: N/A | X93: N/A | Y93: N/A | Z93: N/A
C94: EBITDA Margin: | D94: x | E94: =IFERROR(E58/E50,"N/A") -> 0.8589894833 | G94: =IFERROR(G58/G50,"N/A") -> 0.8594806656 | H94: 0.8594565498 | I94: 0.8594288442 | J94: 0.8593975102 | K94: 0.8593625083 | L94: 0.8593237982 | M94: 0.8592813385 | N94: 0.8592350869 | O94: 0.8591850002 | P94: 0.8591310343 | Q94: 0.859073144 | R94: 0.8590112829 | S94: 0.8589454037 | T94: 0.8588754581 | U94: 0.8588013964 | V94: 0.858723168 | W94: 0.8586407209 | X94: 0.858554002 | Y94: 0.858462957 | Z94: 0.8583675302
C95: Cash Flow Yield: | D95: x | G95: =IFERROR(G83/$E$38,"N/A") -> 0 | H95: =IFERROR(H83/$E$38,"N/A") -> 0.004573827388 | I95: 0.07786247821 | J95: 0.09699993516 | K95: 0 | L95: 0.05153677972 | M95: 0.08356222518 | N95: 0.08448465485 | O95: 0.115996598 | P95: 0.2130685645 | Q95: 0.2622107278 | R95: 0.2679631589 | S95: 0.2738482712 | T95: 0.2798688242 | U95: 0.2860276229 | V95: 0.2923275183 | W95: 0.2987714073 | X95: 0.3053622329 | Y95: 0.3121029845 | Z95: 0.2605319246
G97: =$G$41 -> Projected Years:
B98: Returns Calculations: | D98: =$D$42 -> Units: | E98: =$E$42 -> Total: | F98: =$F$42 -> Year 0 | G98: =$G$42 -> Year 1 | H98: =$H$42 -> Year 2 | I98: =$I$42 -> Year 3 | J98: =$J$42 -> Year 4 | K98: =$K$42 -> Year 5 | L98: =$L$42 -> Year 6 | M98: =$M$42 -> Year 7 | N98: =$N$42 -> Year 8 | O98: =$O$42 -> Year 9 | P98: =$P$42 -> Year 10 | Q98: =$Q$42 -> Year 11 | R98: =$R$42 -> Year 12 | S98: =$S$42 -> Year 13 | T98: =$T$42 -> Year 14 | U98: =$U$42 -> Year 15 | V98: =$V$42 -> Year 16 | W98: =$W$42 -> Year 17 | X98: =$X$42 -> Year 18 | Y98: =$Y$42 -> Year 19 | Z98: =$Z$42 -> Year 20
C100: (-) Upfront Investor Equity: | D100: $ M | E100: =SUM(F100:Z100) -> -815.332451 | F100: =-E38 -> -815.332451 | G100: 0 | H100: 0 | I100: 0 | J100: 0 | K100: 0 | L100: 0 | M100: 0 | N100: 0 | O100: 0 | P100: 0 | Q100: 0 | R100: 0 | S100: 0 | T100: 0 | U100: 0 | V100: 0 | W100: 0 | X100: 0 | Y100: 0 | Z100: 0
C101: (+) Cash Flow to Equity Investors: | D101: $ M | E101: =SUM(F101:Z101) -> 2908.372171 | G101: =G83 -> 0 | H101: =H83 -> 3.729189894 | I101: 63.4838052 | J101: 79.08719489 | K101: 0 | L101: 42.01960893 | M101: 68.13099387 | N101: 68.88308071 | O101: 94.5757906 | P101: 173.7217149 | Q101: 213.7889154 | R101: 218.4790591 | S101: 223.2773822 | T101: 228.1861344 | U101: 233.2076029 | V101: 238.344112 | W101: 243.5980238 | X101: 248.9717378 | Y101: 254.4676913 | Z101: 212.4201327
C102: (+) Exit Value (Terminal Value): | D102: $ M | E102: 0 | G102: 0 | H102: 0 | I102: 0 | J102: 0 | K102: 0 | L102: 0 | M102: 0 | N102: 0 | O102: 0 | P102: 0 | Q102: 0 | R102: 0 | S102: 0 | T102: 0 | U102: 0 | V102: 0 | W102: 0 | X102: 0 | Y102: 0 | Z102: 0
C103: Total Cash Flows to Equity: | D103: $ M | E103: =SUM(E100:E102) -> 2093.03972 | F103: =SUM(F100:F102) -> -815.332451 | G103: =SUM(G100:G102) -> 0 | H103: 3.729189894 | I103: 63.4838052 | J103: 79.08719489 | K103: 0 | L103: 42.01960893 | M103: 68.13099387 | N103: 68.88308071 | O103: 94.5757906 | P103: 173.7217149 | Q103: 213.7889154 | R103: 218.4790591 | S103: 223.2773822 | T103: 228.1861344 | U103: 233.2076029 | V103: 238.344112 | W103: 243.5980238 | X103: 248.9717378 | Y103: 254.4676913 | Z103: 212.4201327
C105: Equity IRR: | D105: % | E105: =IRR(F103:Z103) -> 0.1034029621
C107: Total Returns to Equity: | D107: $ | E107: =SUMIF(F103:Z103,">0",F103:Z103) -> 2908.372171
C108: Invested Equity: | D108: $ | E108: =-SUMIF(F103:Z103,"<=0",F103:Z103) -> 815.332451
C109: Cash-on-Cash Multiple: | D109: x | E109: =E107/E108 -> 3.567099736

Sheet Macros
B2: Macro Output for Copy/Paste VBA Code
B3: =Model!$B$3 -> ($ in Millions USD Except for Per-Unit Figures)
G5: =Model!$G$41 -> Projected Years:
B6: Cash Flow Projections: | D6: =Model!$D$42 -> Units: | E6: =Model!$E$42 -> Total: | F6: =Model!F42 -> Year 0 | G6: =Model!G42 -> Year 1 | H6: =Model!H42 -> Year 2 | I6: =Model!I42 -> Year 3 | J6: =Model!J42 -> Year 4 | K6: =Model!K42 -> Year 5 | L6: =Model!L42 -> Year 6 | M6: =Model!M42 -> Year 7 | N6: =Model!N42 -> Year 8 | O6: =Model!O42 -> Year 9 | P6: =Model!P42 -> Year 10 | Q6: =Model!Q42 -> Year 11 | R6: =Model!R42 -> Year 12 | S6: =Model!S42 -> Year 13 | T6: =Model!T42 -> Year 14 | U6: =Model!U42 -> Year 15 | V6: =Model!V42 -> Year 16 | W6: =Model!W42 -> Year 17 | X6: =Model!X42 -> Year 18 | Y6: =Model!Y42 -> Year 19 | Z6: =Model!Z42 -> Year 20
C8: CFADS Link: | D8: $ M | E8: =SUM(CFADS_Links) -> 4189.77238 | G8: =Model!G62 -> 178.5965247 | H8: =Model!H62 -> 192.7068812 | I8: =Model!I62 -> 195.1814555 | J8: =Model!J62 -> 197.5704967 | K8: =Model!K62 -> 109.8598151 | L8: =Model!L62 -> 203.9025918 | M8: =Model!M62 -> 205.968976 | N8: =Model!N62 -> 207.8868811 | O8: =Model!O62 -> 209.6362518 | P8: =Model!P62 -> 173.7217149 | Q8: =Model!Q62 -> 213.7889154 | R8: =Model!R62 -> 218.4790591 | S8: =Model!S62 -> 223.2773822 | T8: =Model!T62 -> 228.1861344 | U8: =Model!U62 -> 233.2076029 | V8: =Model!V62 -> 238.344112 | W8: =Model!W62 -> 243.5980238 | X8: =Model!X62 -> 248.9717378 | Y8: =Model!Y62 -> 254.4676913 | Z8: =Model!Z62 -> 212.4201327
C9: Pasted CFADS: | D9: $ M | E9: =SUM(CFADS_Paste) -> 4240.528278 | G9: 178.5486282 | H9: 192.6651284 | I9: 195.1475674 | J9: 197.5464754 | K9: 177.7249528 | L9: 202.7743491 | M9: 204.8398478 | N9: 206.7569733 | O9: 208.5057005 | P9: 172.5906917 | Q9: 212.6576325 | R9: 217.3477763 | S9: 222.1460993 | T9: 227.0548515 | U9: 232.07632 | V9: 237.2128292 | W9: 242.466741 | X9: 247.840455 | Y9: 253.3364085 | Z9: 211.2888498
C11: Check / Comparison: | D11: $ M | E11: =ROUND(E8-E9,0) -> -51
